bitfinex-derivatives/quotes_BTCF0:USTF0_20210404
["timestamp","ask_amount","ask_price","bid_price","bid_amount"]
[1617579916730,0.30193729,58157.0,58156.0,5.04253581]
[1617579921233,1.30193729,58157.0,58156.0,5.04253581]
[1617579921433,0.30193729,58157.0,58156.0,5.04253581]
[1617579921934,0.30168501,58158.0,58156.0,5.04253581]
[1617579922334,0.30168501,58158.0,58157.0,1.46453044]
[1617579922634,0.30168501,58158.0,58157.0,1.73453044]
[1617579925738,0.30121598,58161.0,58157.0,1.73453044]
[1617579925937,0.30121598,58161.0,58160.0,3.4048]
[1617579926139,0.30121598,58161.0,58160.0,3.90907868]
[1617579926340,0.30123314,58164.0,58160.0,4.98592457]
[1617579926742,0.30129388,58165.0,58160.0,5.13748597]
[1617579926938,0.30129388,58165.0,58161.0,0.2]
[1617579927139,0.3013479,58167.0,58164.0,0.10725655]
[1617579927338,0.3013479,58167.0,58164.0,0.30725655]
[1617579927539,0.3013479,58167.0,58165.0,0.01]
[1617579927943,0.30138692,58169.0,58166.0,1.31105408]
[1617579928342,0.30138692,58169.0,58168.0,4.58697277]
[1617579928742,0.30138692,58169.0,58168.0,4.85697277]
[1617579929345,0.30138692,58169.0,58168.0,5.00852954]
[1617579932948,0.30138692,58169.0,58168.0,4.50427848]
[1617579933148,1.30138692,58169.0,58168.0,4.50427848]
[1617579933647,1.52681813,58169.0,58168.0,4.50427848]
[1617579934850,1.30138692,58169.0,58168.0,4.50427848]
[1617579935750,1.01013,58169.0,58168.0,4.50427848]
[1617579937452,1.0,58169.0,58168.0,4.50427848]
[1617579938452,1.01013039,58169.0,58168.0,4.50427848]
[1617579938853,1.0,58169.0,58168.0,4.50427848]
[1617579948566,1.0,58169.0,58168.0,1.38457848]
[1617579948767,1.11623,58169.0,58168.0,1.22835848]
[1617579948967,1.11623,58169.0,58168.0,1.13742442]
[1617579949870,1.0,58169.0,58168.0,1.13742442]
[1617579952075,0.10725655,58172.0,58168.0,1.13742442]
[1617579952077,1.0,58171.0,58168.0,1.13742442]
[1617579952776,1.0,58171.0,58170.0,0.80471586]
[1617579953177,1.0,58171.0,58170.0,1.07471586]
[1617579953378,1.0,58171.0,58170.0,1.18197241]
[1617579953779,1.0,58171.0,58170.0,1.24259289]
[1617579959488,1.10725655,58172.0,58170.0,1.24259289]
[1617579959688,1.0,58171.0,58170.0,1.24259289]
[1617579961791,1.10725655,58172.0,58170.0,1.24259289]
[1617579962592,1.10725655,58172.0,58171.0,0.8652019]
[1617579962991,1.10725655,58172.0,58171.0,3.9147019]
[1617579963393,0.10725655,58172.0,58171.0,3.9147019]
[1617579963592,0.10725655,58172.0,58171.0,4.00563036]
[1617579966799,1.30112871,58176.0,58171.0,1.22613036]
[1617579966998,0.30112871,58176.0,58175.0,3.3252]
[1617579967399,0.30112871,58176.0,58175.0,3.95742326]
[1617579967799,0.44195645,58184.0,58175.0,4.55165301]
[1617579967800,0.3015733,58181.0,58175.0,4.55165301]
[1617579968001,0.3015733,58181.0,58176.0,0.2]
[1617579968403,0.50255518,58194.0,58176.0,0.2]
[1617579968404,0.30163188,58182.0,58180.0,0.3621914]
[1617579968802,0.30168411,58184.0,58181.0,0.27]
[1617579969203,0.30168411,58184.0,58183.0,0.36216338]
[1617579969401,0.30172628,58185.0,58183.0,0.46941993]
[1617579969602,0.30172628,58185.0,58183.0,0.73941993]
[1617579969802,0.30187662,58188.0,58183.0,1.18204318]
[1617579970202,0.30187662,58188.0,58184.0,0.80476646]
[1617579970702,0.30187662,58188.0,58187.0,0.36214886]
[1617579971113,0.30187662,58188.0,58187.0,0.63214886]
[1617579971506,0.30187662,58188.0,58187.0,0.69275569]
[1617579972706,0.3018833,58189.0,58187.0,0.69275569]
[1617579973315,0.3018833,58189.0,58188.0,0.42272718]
[1617579973707,0.3018833,58189.0,58188.0,0.69272718]
[1617579974308,0.3018833,58189.0,58188.0,3.31602718]
[1617579974908,0.664675,58189.0,58188.0,3.85008922]
[1617579975409,1.664675,58189.0,58188.0,3.85008922]
[1617579976211,1.88056757,58189.0,58188.0,3.85008922]
[1617579977208,0.88056757,58189.0,58188.0,3.85008922]
[1617579977409,1.88056757,58189.0,58188.0,3.85008922]
[1617579977610,1.3018833,58189.0,58188.0,3.31602718]
[1617579979110,0.3018833,58189.0,58188.0,3.31602718]
[1617579982415,0.3018833,58189.0,58188.0,3.31702718]
[1617579984717,0.10725655,58193.0,58188.0,3.31702718]
[1617579984718,0.301835,58190.0,58188.0,3.31702718]
[1617579985119,0.30183597,58189.0,58188.0,3.31702718]
[1617579985621,0.30183412,58190.0,58188.0,2.8943]
[1617579985919,0.30206127,58189.0,58188.0,3.33685833]
[1617579986718,0.30206127,58189.0,58188.0,3.69893563]
[1617579987220,0.30206127,58189.0,58188.0,3.2563773]
[1617579998237,0.30206127,58189.0,58188.0,0.6330773]
[1617579998637,3.96326127,58189.0,58188.0,0.6330773]
[1617579999341,4.52768516,58189.0,58188.0,0.6330773]
[1617579999842,4.52768516,58189.0,58188.0,0.271]
[1617580000541,3.52768516,58189.0,58188.0,0.271]
[1617580000742,4.52768516,58189.0,58188.0,0.63262169]
[1617580001163,4.97068441,58189.0,58188.0,0.271]
[1617580005443,3.97068441,58189.0,58188.0,0.271]
[1617580005644,4.97068441,58189.0,58188.0,0.271]
[1617580006044,5.4742004,58189.0,58188.0,0.271]
[1617580006646,4.97068441,58189.0,58188.0,0.271]
[1617580007646,5.4742047,58189.0,58188.0,0.271]
[1617580010751,4.97068441,58189.0,58188.0,0.271]
[1617580011950,5.47420506,58189.0,58188.0,0.271]
[1617580016756,5.47385458,58189.0,58188.0,0.271]
[1617580024467,5.47385458,58189.0,58188.0,0.272]
[1617580030878,4.47385458,58189.0,58188.0,0.272]
[1617580031079,5.47385458,58189.0,58188.0,0.272]
[1617580033282,5.67385458,58189.0,58188.0,0.272]
[1617580033483,7.17385458,58189.0,58188.0,0.272]
[1617580033684,4.51265458,58189.0,58188.0,0.272]
[1617580033883,4.31265458,58189.0,58188.0,0.272]
[1617580034083,4.31265458,58189.0,58188.0,3.6684]
[1617580035585,2.81265458,58189.0,58188.0,0.272]
[1617580036490,4.31265458,58189.0,58188.0,0.272]
[1617580036694,12.61245458,58189.0,58188.0,0.272]
[1617580037296,13.39253139,58189.0,58188.0,0.272]
[1617580039189,13.95696926,58189.0,58188.0,0.272]
[1617580042292,12.45696926,58189.0,58188.0,0.272]
[1617580043294,6.89253139,58189.0,58188.0,0.272]
[1617580043694,13.39253139,58189.0,58188.0,0.272]
[1617580047497,4.7998,58189.0,58188.0,0.272]
[1617580047696,10.7998,58189.0,58188.0,0.272]
[1617580047897,12.41102148,58189.0,58188.0,0.272]
[1617580048397,10.91102148,58189.0,58188.0,0.272]
[1617580048597,4.91102148,58189.0,58188.0,0.272]
[1617580048797,5.91102148,58189.0,58188.0,0.272]
[1617580048999,7.41102148,58189.0,58188.0,0.272]
[1617580049200,6.47524856,58189.0,58188.0,0.272]
[1617580049599,6.95120768,58189.0,58188.0,0.272]
[1617580051100,5.95120768,58189.0,58188.0,0.272]
[1617580051301,6.95120768,58189.0,58188.0,0.272]
[1617580052704,6.47524856,58189.0,58188.0,0.272]
[1617580054307,5.91102148,58189.0,58188.0,0.272]
[1617580054508,12.41102148,58189.0,58188.0,0.272]
[1617580054709,11.38634047,58189.0,58188.0,0.272]
[1617580055210,11.95046022,58189.0,58188.0,0.272]
[1617580057111,13.45046022,58189.0,58188.0,0.272]
[1617580060917,13.45046022,58189.0,58188.0,0.349]
[1617580061316,8.45046022,58189.0,58188.0,0.349]
[1617580063219,7.45046022,58189.0,58188.0,0.349]
[1617580063418,8.45046022,58189.0,58188.0,0.349]
[1617580063918,13.45046022,58189.0,58188.0,0.349]
[1617580064321,8.45046022,58189.0,58188.0,0.349]
[1617580064519,13.45046022,58189.0,58188.0,0.349]
[1617580065822,8.45046022,58189.0,58188.0,0.349]
[1617580067026,11.95046022,58189.0,58188.0,0.349]
[1617580067425,6.95046022,58189.0,58188.0,0.349]
[1617580068026,6.47514123,58189.0,58188.0,0.349]
[1617580068426,5.91102148,58189.0,58188.0,0.349]
[1617580069026,4.91102148,58189.0,58188.0,0.349]
[1617580069227,5.91102148,58189.0,58188.0,0.349]
[1617580070626,5.91102148,58189.0,58188.0,0.419]
[1617580071248,5.91102148,58189.0,58188.0,0.5521]
[1617580073435,5.40753994,58189.0,58188.0,0.5521]
[1617580074035,5.91134474,58189.0,58188.0,0.5521]
[1617580074236,5.91134474,58189.0,58188.0,0.419]
[1617580082045,5.40753994,58189.0,58188.0,0.419]
[1617580090654,2.10773994,58189.0,58188.0,0.419]
[1617580090854,2.10773994,58189.0,58188.0,3.3778]
[1617580092857,2.10773994,58189.0,58188.0,3.48505655]
[1617580093259,0.6646641,58189.0,58188.0,3.48505655]
[1617580094461,0.6646641,58189.0,58188.0,3.84736635]
[1617580097864,0.6646641,58189.0,58188.0,1.08856635]
[1617580098467,0.3021292,58189.0,58188.0,1.08856635]
[1617580098867,0.40918882,58193.0,58188.0,1.53034573]
[1617580099267,0.10725655,58193.0,58188.0,1.53034573]
[1617580099668,0.10725655,58193.0,58192.0,0.80268425]
[1617580099867,0.30192426,58196.0,58193.0,0.2]
[1617580100268,0.30192426,58196.0,58194.0,0.01]
[1617580100467,0.30192426,58196.0,58195.0,0.36123833]
[1617580100667,0.30192426,58196.0,58195.0,0.56123833]
[1617580100869,0.30192426,58196.0,58195.0,0.93849488]
[1617580101270,0.30192041,58197.0,58195.0,0.99909759]
[1617580101872,0.30192041,58197.0,58196.0,0.62179275]
[1617580102271,0.30192041,58197.0,58196.0,0.89179275]
[1617580103273,0.10725655,58209.0,58196.0,0.89179275]
[1617580103274,0.30194927,58199.0,58196.0,1.33303758]
[1617580103874,0.30194753,58200.0,58198.0,0.80220205]
[1617580104073,0.30194753,58200.0,58199.0,0.2]
[1617580104274,0.30194852,58201.0,58199.0,0.47]
[1617580104674,0.36231691,58203.0,58200.0,0.42158288]
[1617580104874,0.36231691,58203.0,58202.0,0.10725655]
[1617580105074,0.36231691,58203.0,58202.0,0.30725655]
[1617580105274,0.36231691,58203.0,58202.0,0.67823669]
[1617580105675,0.66426419,58203.0,58202.0,3.7346448]
[1617580106576,0.30194728,58203.0,58202.0,3.7346448]
[1617580107777,0.10725655,58209.0,58202.0,3.7346448]
[1617580107778,0.30115327,58207.0,58202.0,3.31305655]
[1617580108178,1.30115327,58207.0,58202.0,0.31725655]
[1617580108580,1.0,58206.0,58202.0,0.31725655]
[1617580108778,0.30115327,58207.0,58205.0,3.2014]
[1617580108979,0.30115529,58206.0,58205.0,3.2014]
[1617580109379,0.30115529,58206.0,58205.0,3.4614]
[1617580112384,0.30117006,58208.0,58205.0,3.4614]
[1617580112582,0.30117006,58208.0,58205.0,0.26]
[1617580112783,0.10725655,58209.0,58205.0,0.26]
[1617580112784,0.40842732,58209.0,58205.0,0.26]
[1617580112982,0.40842732,58209.0,58208.0,0.10725655]
[1617580113184,0.10725655,58209.0,58208.0,0.10725655]
[1617580113383,0.10725655,58209.0,58208.0,0.11725655]
[1617580113585,0.40842932,58209.0,58208.0,0.11725655]
[1617580113983,1.40842932,58209.0,58208.0,0.11725655]
[1617580118085,1.10725655,58209.0,58208.0,0.11725655]
[1617580118487,1.40841996,58209.0,58208.0,0.11725655]
[1617580118889,1.10725655,58209.0,58208.0,0.11725655]
[1617580126701,1.40847393,58209.0,58208.0,0.11725655]
[1617580128202,1.10725655,58209.0,58208.0,0.11725655]
[1617580130707,1.10725655,58209.0,58208.0,0.26425655]
[1617580131909,1.10725655,58209.0,58208.0,3.90585655]
[1617580136819,0.10725655,58209.0,58208.0,3.90585655]
[1617580141126,1.10725655,58209.0,58208.0,3.90585655]
[1617580141739,1.10725655,58209.0,58208.0,0.26425655]
[1617580141941,4.66585655,58209.0,58208.0,0.157]
[1617580142538,4.96706753,58209.0,58208.0,0.157]
[1617580144025,4.66585655,58209.0,58208.0,0.157]
[1617580144225,1.10725655,58209.0,58208.0,0.157]
[1617580144426,1.40847424,58209.0,58208.0,0.157]
[1617580144625,1.40847424,58209.0,58208.0,3.3546]
[1617580144825,1.10725655,58209.0,58208.0,3.3546]
[1617580145225,1.10725655,58209.0,58208.0,3.46185655]
[1617580146027,1.40891625,58209.0,58208.0,3.46185655]
[1617580147027,1.40891625,58209.0,58208.0,3.82153479]
[1617580147626,1.10725655,58209.0,58208.0,3.82153479]
[1617580149632,0.10725655,58209.0,58208.0,3.82153479]
[1617580149831,1.10725655,58209.0,58208.0,3.82153479]
[1617580151032,1.40896722,58209.0,58208.0,3.82153479]
[1617580152633,1.40896722,58209.0,58208.0,3.82253479]
[1617580152833,1.40896722,58209.0,58208.0,3.82353479]
[1617580155136,0.40896722,58209.0,58208.0,3.82353479]
[1617580156538,0.77211957,58209.0,58208.0,4.2644226]
[1617580157342,0.98169068,58209.0,58208.0,4.2644226]
[1617580157742,0.77211957,58209.0,58208.0,4.2644226]
[1617580158045,0.98169069,58209.0,58208.0,4.2644226]
[1617580158743,1.98169069,58209.0,58208.0,4.2644226]
[1617580158944,2.09322069,58209.0,58208.0,4.2644226]
[1617580163851,2.53709953,58209.0,58208.0,4.2644226]
[1617580164755,2.09322069,58209.0,58208.0,4.2644226]
[1617580167057,1.09322069,58209.0,58208.0,4.2644226]
[1617580167257,2.09322069,58209.0,58208.0,4.2644226]
[1617580168058,2.53724453,58209.0,58208.0,4.2644226]
[1617580174863,1.53724453,58209.0,58208.0,4.2644226]
[1617580175065,2.53724453,58209.0,58208.0,4.2644226]
[1617580177065,1.21878655,58209.0,58208.0,3.46385655]
[1617580177266,1.10725655,58209.0,58208.0,3.46385655]
[1617580177467,2.21734548,58209.0,58208.0,4.26424762]
[1617580184578,1.21734548,58209.0,58208.0,4.26424762]
[1617580184780,2.21734548,58209.0,58208.0,4.26424762]
[1617580192788,2.21734548,58209.0,58208.0,3.82403253]
[1617580193087,2.21734548,58209.0,58208.0,4.26464035]
[1617580195288,2.21734548,58209.0,58208.0,3.82403253]
[1617580197493,2.21734548,58209.0,58208.0,4.26566682]
[1617580204903,1.21734548,58209.0,58208.0,4.26566682]
[1617580205103,2.21734548,58209.0,58208.0,4.26566682]
[1617580205803,2.31436824,58209.0,58208.0,4.15841027]
[1617580206403,2.42162479,58209.0,58208.0,4.15841027]
[1617580206904,2.42162479,58209.0,58208.0,0.96081027]
[1617580207504,5.74752479,58209.0,58208.0,0.96081027]
[1617580207905,6.06636012,58209.0,58208.0,0.96081027]
[1617580208105,5.06636012,58209.0,58208.0,0.96081027]
[1617580208306,6.06636012,58209.0,58208.0,0.51917598]
[1617580209305,6.57095888,58209.0,58208.0,0.51917598]
[1617580210405,6.57095888,58209.0,58208.0,0.159]
[1617580210805,6.57095888,58209.0,58208.0,0.51979611]
[1617580213212,3.24505888,58209.0,58208.0,0.51979611]
[1617580213415,3.24505888,58209.0,58208.0,3.73839611]
[1617580213613,2.42162479,58209.0,58208.0,3.73839611]
[1617580214014,2.74068078,58209.0,58208.0,3.73839611]
[1617580214415,2.42162479,58209.0,58208.0,3.73839611]
[1617580215219,2.74069387,58209.0,58208.0,3.73839611]
[1617580215418,2.74069387,58209.0,58208.0,3.84388611]
[1617580215620,2.42162479,58209.0,58208.0,3.84388611]
[1617580218324,2.42162479,58209.0,58208.0,4.28478281]
[1617580218725,1.9776094,58209.0,58208.0,4.28478281]
[1617580219126,0.87035285,58209.0,58208.0,4.28478281]
[1617580219929,0.66607354,58209.0,58208.0,4.28478281]
[1617580220331,0.30276987,58209.0,58208.0,4.28478281]
[1617580224333,3.80546987,58209.0,58208.0,4.28478281]
[1617580225936,4.16839356,58209.0,58208.0,4.17929281]
[1617580226533,4.27565011,58209.0,58208.0,4.17929281]
[1617580226936,5.27565011,58209.0,58208.0,4.17929281]
[1617580227936,1.77295011,58209.0,58208.0,4.17929281]
[1617580232440,0.77295011,58209.0,58208.0,4.17929281]
[1617580232742,1.77295011,58209.0,58208.0,4.17929281]
[1617580233141,0.77295011,58209.0,58208.0,4.17929281]
[1617580233446,1.97774996,58209.0,58208.0,4.17929281]
[1617580237749,0.97774996,58209.0,58208.0,4.17929281]
[1617580237948,1.97774996,58209.0,58208.0,4.17929281]
[1617580242255,0.97774996,58209.0,58208.0,4.17929281]
[1617580242455,1.97774996,58209.0,58208.0,4.17929281]
[1617580243056,1.97674996,58209.0,58208.0,4.17829281]
[1617580248264,1.10641996,58209.0,58208.0,0.95969281]
[1617580248465,5.34191996,58209.0,58208.0,0.95969281]
[1617580249565,5.34191996,58209.0,58208.0,0.51879611]
[1617580250567,5.34191996,58209.0,58208.0,0.95925612]
[1617580255570,5.34091996,58209.0,58208.0,0.95825612]
[1617580259780,5.34091996,58209.0,58208.0,0.51779611]
[1617580260578,4.34091996,58209.0,58208.0,0.51779611]
[1617580260779,4.47242655,58209.0,58208.0,0.157]
[1617580261180,4.83531315,58209.0,58208.0,0.51760268]
[1617580261581,4.83531315,58209.0,58208.0,0.95826095]
[1617580268289,1.59981315,58209.0,58208.0,0.95826095]
[1617580268489,1.47014315,58209.0,58208.0,4.18953095]
[1617580268888,0.47014315,58209.0,58208.0,4.18953095]
[1617580269088,1.47014315,58209.0,58208.0,4.18953095]
[1617580269289,0.47014315,58209.0,58208.0,4.28041103]
[1617580269689,0.10725655,58209.0,58208.0,4.98069407]
[1617580271391,0.10725655,58209.0,58208.0,5.03199407]
[1617580272089,0.36302478,58215.0,58208.0,5.03199407]
[1617580272493,0.36302478,58215.0,58208.0,6.53199407]
[1617580272691,0.44367456,58220.0,58214.0,0.90732439]
[1617580272692,0.36301982,58216.0,58214.0,0.90732439]
[1617580273091,0.36301982,58216.0,58215.0,1.13055883]
[1617580273592,0.3630142,58217.0,58215.0,1.13055883]
[1617580274391,0.36301292,58218.0,58216.0,0.85968501]
[1617580274792,0.44366072,58222.0,58217.0,1.06913697]
[1617580275195,0.44366072,58222.0,58221.0,0.35939804]
[1617580275394,0.44366072,58222.0,58221.0,0.51888804]
[1617580275594,0.36301431,58222.0,58221.0,1.228155]
[1617580276395,0.36301431,58222.0,58221.0,1.28873263]
[1617580276797,0.36301431,58222.0,58221.0,1.39598918]
[1617580280804,0.36301431,58222.0,58221.0,1.46598918]
[1617580281405,0.36247268,58223.0,58221.0,1.02672222]
[1617580281805,1.0,58226.0,58221.0,1.02672222]
[1617580281806,0.56447606,58222.0,58221.0,1.02672222]
[1617580282206,0.36247691,58222.0,58221.0,1.02672222]
[1617580282608,0.56394817,58222.0,58221.0,1.02672222]
[1617580283007,0.36247691,58222.0,58221.0,1.02672222]
[1617580283407,0.36247334,58223.0,58221.0,1.02672222]
[1617580283806,0.36247334,58223.0,58222.0,0.419348]
[1617580284307,0.36247334,58223.0,58222.0,0.689348]
[1617580285508,0.36245214,58224.0,58222.0,1.12783301]
[1617580285907,0.36245214,58224.0,58223.0,0.41932958]
[1617580286406,0.36245214,58224.0,58223.0,0.68932958]
[1617580286807,0.66450955,58224.0,58223.0,0.68932958]
[1617580287209,0.30205741,58224.0,58223.0,0.68932958]
[1617580290811,2.97245741,58224.0,58223.0,0.68932958]
[1617580291114,2.97245741,58224.0,58223.0,1.12738788]
[1617580291513,0.56,58230.0,58223.0,1.12738788]
[1617580291514,0.30194373,58225.0,58223.0,1.12738788]
[1617580291713,0.30194373,58225.0,58223.0,4.70248788]
[1617580292113,0.30193386,58228.0,58224.0,0.94718312]
[1617580292513,0.56,58230.0,58227.0,0.35757399]
[1617580292713,0.56,58230.0,58229.0,0.10725655]
[1617580292914,0.56,58230.0,58229.0,0.46474547]
[1617580293315,0.56,58230.0,58229.0,0.7953087]
[1617580300324,0.56,58230.0,58229.0,1.23212517]
[1617580300521,0.56,58230.0,58229.0,1.28292517]
[1617580301123,0.56,58230.0,58229.0,1.23212517]
[1617580303027,0.56,58230.0,58229.0,2.73212517]
[1617580303228,0.56,58230.0,58229.0,2.78402517]
[1617580303430,0.56,58230.0,58229.0,2.98402517]
[1617580303834,0.4235,58230.0,58229.0,4.56920351]
[1617580304232,0.4235,58230.0,58229.0,3.56920351]
[1617580304432,0.4235,58230.0,58229.0,4.56920351]
[1617580304834,0.3713,58230.0,58229.0,3.56920351]
[1617580305031,0.30081708,58251.0,58229.0,3.56920351]
[1617580305032,0.30081708,58251.0,58229.0,4.56920351]
[1617580305237,0.36096045,58254.0,58250.0,3.0313]
[1617580305238,0.30076982,58254.0,58250.0,3.0313]
[1617580305433,0.36090373,58257.0,58251.0,1.7]
[1617580305434,0.35270373,58257.0,58251.0,1.7]
[1617580305634,0.30070916,58263.0,58251.0,1.97]
[1617580305834,0.30070916,58263.0,58256.0,1.0]
[1617580306038,0.56123692,58285.0,58256.0,1.0]
[1617580306039,0.30068421,58275.0,58260.0,0.43282273]
[1617580306234,0.30068421,58275.0,58261.0,0.2]
[1617580306435,0.30067979,58277.0,58263.0,0.2]
[1617580306634,0.30067979,58277.0,58265.0,0.2]
[1617580306835,0.30067979,58277.0,58276.0,0.10725655]
[1617580307037,0.30066836,58282.0,58276.0,1.72290655]
[1617580307235,0.30066836,58282.0,58276.0,1.73290655]
[1617580307437,0.30066364,58284.0,58276.0,1.73290655]
[1617580307835,0.0002,58286.0,58276.0,1.73290655]
[1617580307836,0.30066246,58285.0,58276.0,0.23290655]
[1617580308035,0.30066246,58285.0,58276.0,0.11725655]
[1617580308237,3.25122,58282.0,58276.0,0.11725655]
[1617580308437,4.25122,58282.0,58276.0,0.11725655]
[1617580308640,1.0,58280.0,58276.0,0.11725655]
[1617580308838,0.10725655,58277.0,58276.0,0.11725655]
[1617580309440,3.60785655,58277.0,58276.0,0.11725655]
[1617580309639,4.60785655,58277.0,58276.0,0.11725655]
[1617580310241,4.90854281,58277.0,58276.0,0.11725655]
[1617580310440,1.40794281,58277.0,58276.0,3.01805655]
[1617580310642,1.10725655,58277.0,58276.0,3.01805655]
[1617580310843,0.30068795,58278.0,58276.0,3.01805655]
[1617580311441,0.10745655,58286.0,58276.0,3.01805655]
[1617580311442,1.0,58277.0,58276.0,3.01805655]
[1617580311641,0.300676,58280.0,58276.0,3.01805655]
[1617580311843,1.0,58279.0,58276.0,3.01805655]
[1617580312843,0.10725655,58278.0,58276.0,3.01805655]
[1617580313944,1.10725655,58278.0,58276.0,3.01805655]
[1617580314945,0.10725655,58278.0,58276.0,3.01805655]
[1617580318961,0.22991655,58278.0,58276.0,3.01805655]
[1617580319171,4.6995,58277.0,58276.0,0.11725655]
[1617580320149,4.6995,58277.0,58276.0,0.01]
[1617580320551,4.6995,58277.0,58255.0,0.27]
[1617580320750,4.6995,58277.0,58276.0,0.147]
[1617580320952,4.6995,58277.0,58276.0,0.417]
[1617580321150,4.6995,58277.0,58276.0,0.147]
[1617580321553,4.6995,58277.0,58276.0,0.417]
[1617580322351,3.6995,58277.0,58276.0,0.417]
[1617580322550,4.6995,58277.0,58276.0,0.417]
[1617580322751,1.0,58277.0,58276.0,0.417]
[1617580322951,1.0,58277.0,58276.0,0.52425655]
[1617580323352,1.0,58283.0,58277.0,3.6711]
[1617580323753,1.0,58284.0,58278.0,0.27]
[1617580324356,1.0,58285.0,58278.0,0.27]
[1617580324557,0.0002,58286.0,58278.0,0.27]
[1617580324955,0.0002,58286.0,58285.0,0.10725655]
[1617580325155,0.0002,58286.0,58285.0,0.25863655]
[1617580325356,0.0002,58286.0,58285.0,0.52863655]
[1617580328861,1.0002,58286.0,58285.0,0.37725655]
[1617580329060,0.0002,58286.0,58285.0,0.37725655]
[1617580334268,1.0002,58286.0,58285.0,0.37725655]
[1617580334667,4.14,58286.0,58285.0,0.37725655]
[1617580335668,3.14,58286.0,58285.0,0.37725655]
[1617580335870,4.14,58286.0,58285.0,0.37725655]
[1617580337172,1.0002,58286.0,58285.0,3.18905655]
[1617580337371,0.0002,58286.0,58285.0,3.18905655]
[1617580339176,1.0002,58286.0,58285.0,3.18905655]
[1617580341380,1.2002,58286.0,58285.0,3.18905655]
[1617580341981,1.2002,58286.0,58285.0,0.27]
[1617580342380,1.2002,58286.0,58261.0,0.35205431]
[1617580342381,4.7614,58286.0,58274.0,3.0995]
[1617580342781,4.7614,58286.0,58285.0,0.01]
[1617580342981,1.2002,58286.0,58285.0,3.4945]
[1617580343180,1.0002,58286.0,58285.0,3.4945]
[1617580343381,1.0002,58286.0,58285.0,3.7645]
[1617580344983,1.0002,58286.0,58285.0,3.88004]
[1617580346285,1.0002,58286.0,58285.0,0.27]
[1617580346486,1.2002,58286.0,58285.0,0.27]
[1617580346686,1.2002,58286.0,58284.0,0.27]
[1617580346886,1.33183,58286.0,58285.0,3.5398]
[1617580347088,0.13183,58286.0,58285.0,3.8098]
[1617580347288,0.13183,58286.0,58285.0,3.5398]
[1617580347488,1.13183,58286.0,58285.0,3.5398]
[1617580347686,1.13183,58286.0,58285.0,3.8098]
[1617580350693,1.13183,58286.0,58285.0,3.9568]
[1617580352294,1.4322861,58286.0,58285.0,3.9568]
[1617580352993,0.4322861,58286.0,58285.0,3.9568]
[1617580353193,0.3006561,58286.0,58285.0,3.9568]
[1617580354295,1.3006561,58286.0,58285.0,3.9568]
[1617580354699,1.66118461,58286.0,58285.0,3.9568]
[1617580356000,0.3006561,58286.0,58285.0,3.9568]
[1617580356199,1.3006561,58286.0,58285.0,3.9568]
[1617580357903,1.0002,58286.0,58285.0,3.9568]
[1617580358205,1.66117721,58286.0,58285.0,3.9568]
[1617580358402,1.66117721,58286.0,58285.0,0.417]
[1617580360807,1.86117721,58286.0,58285.0,0.417]
[1617580361503,0.86117721,58286.0,58285.0,0.417]
[1617580361705,1.86117721,58286.0,58285.0,0.417]
[1617580362606,2.06830996,58286.0,58285.0,0.417]
[1617580364107,3.01586888,58286.0,58285.0,0.417]
[1617580364707,3.33868808,58286.0,58285.0,0.417]
[1617580366707,4.51586888,58286.0,58285.0,0.417]
[1617580368009,3.35344836,58286.0,58285.0,0.417]
[1617580368412,4.85344836,58286.0,58285.0,0.417]
[1617580368613,12.46464836,58286.0,58285.0,0.417]
[1617580368811,13.02919136,58286.0,58285.0,0.1283]
[1617580369010,13.02919136,58286.0,58270.0,0.35637078]
[1617580369212,0.10725655,58271.0,58265.0,0.43556429]
[1617580369412,0.2,58269.0,58263.0,0.35667535]
[1617580369611,1.7,58268.0,58266.0,0.27]
[1617580369812,2.8123,58267.0,58264.0,0.27]
[1617580370011,1.5,58266.0,58264.0,0.27]
[1617580370212,1.5,58266.0,58259.0,0.27]
[1617580370413,0.2,58265.0,58259.0,0.27]
[1617580370613,1.85550109,58265.0,58258.0,0.01]
[1617580370812,1.85550109,58265.0,58260.0,0.27]
[1617580371013,0.24218301,58265.0,58260.0,0.27]
[1617580371214,0.10725655,58261.0,58259.0,0.27]
[1617580371413,1.5,58260.0,58259.0,0.27]
[1617580371613,7.5,58260.0,58257.0,0.35702175]
[1617580371812,7.5,58260.0,58259.0,0.27]
[1617580372215,1.14564961,58259.0,58258.0,0.27]
[1617580372414,2.64564961,58259.0,58257.0,0.01]
[1617580372615,1.14564961,58259.0,58258.0,0.27]
[1617580372816,2.34596895,58259.0,58258.0,0.27]
[1617580373014,2.34596895,58259.0,58241.0,0.35568895]
[1617580373215,2.34596895,58259.0,58258.0,0.27]
[1617580373216,1.90448292,58259.0,58258.0,0.27]
[1617580373415,2.40448292,58259.0,58258.0,0.27]
[1617580373615,2.40448292,58259.0,58245.0,0.35546399]
[1617580373616,0.01013143,58251.0,58245.0,0.35546399]
[1617580373818,0.12278143,58251.0,58249.0,0.27]
[1617580374016,0.30103502,58250.0,58249.0,0.27]
[1617580374215,0.30103502,58250.0,58246.0,0.02]
[1617580374416,0.11265,58251.0,58246.0,0.35563018]
[1617580374615,1.0,58250.0,58246.0,0.35563018]
[1617580374818,1.0,58250.0,58235.0,0.4939308]
[1617580374819,1.0,58250.0,58247.0,0.27]
[1617580375216,0.10725655,58248.0,58245.0,0.35547296]
[1617580375617,0.10725655,58248.0,58246.0,0.26]
[1617580375816,0.10725655,58248.0,58245.0,0.35547296]
[1617580376116,0.10725655,58248.0,58246.0,0.27]
[1617580376516,1.0,58247.0,58246.0,0.27]
[1617580376717,1.0,58247.0,58243.0,0.35563081]
[1617580377117,1.0,58247.0,58245.0,0.26]
[1617580377317,1.0,58247.0,58244.0,0.01]
[1617580377518,1.0,58247.0,58243.0,0.35563081]
[1617580377817,1.0,58247.0,58244.0,0.27]
[1617580378820,1.0,58245.0,58242.0,0.01]
[1617580379019,1.0,58245.0,58242.0,0.36563925]
[1617580379220,1.0,58243.0,58242.0,0.35563925]
[1617580379619,1.0,58243.0,58242.0,0.36563925]
[1617580380220,1.0,58243.0,58242.0,0.42618913]
[1617580381722,1.0,58243.0,58242.0,0.07054988]
[1617580384225,1.0,58243.0,58242.0,0.01]
[1617580384425,0.01012841,58246.0,58242.0,0.01]